bitfinex/quotes_BTCUSD_20250512
["timestamp","ask_amount","ask_price","bid_price","bid_amount"]
[1747015395135,0.44735679,104030.0,104020.0,0.62637339]
[1747015395346,0.47925679,104030.0,104020.0,0.04228569]
[1747015396071,0.57511109,104030.0,104020.0,0.04628569]
[1747015396512,0.57511109,104030.0,104020.0,0.38628569]
[1747015396727,0.57511109,104030.0,104020.0,0.04628569]
[1747015396938,0.57511109,104030.0,104020.0,0.38928569]
[1747015397153,0.57511109,104030.0,104020.0,0.38528569]
[1747015397377,0.57511109,104030.0,104020.0,0.001]
[1747015397838,0.57511109,104030.0,104020.0,0.002]
[1747015399975,0.58965194,104030.0,104020.0,0.002]
[1747015401131,0.58965194,104030.0,104000.0,0.25853578]
[1747015401327,0.21151746,104010.0,104000.0,0.25862899]
[1747015401596,0.44743746,104010.0,104000.0,1.33860848]
[1747015401828,0.44743746,104010.0,104000.0,1.35420848]
[1747015402304,0.44743746,104010.0,104000.0,1.79060377]
[1747015402522,0.43782347,104010.0,104000.0,1.35420848]
[1747015403540,0.43782347,104010.0,104000.0,1.36382386]
[1747015403711,0.01922771,104010.0,104000.0,1.81283351]
[1747015403914,0.33905118,104010.0,104000.0,1.55251607]
[1747015404124,0.33905118,104010.0,104000.0,1.56213126]
[1747015404326,0.14676198,104010.0,104000.0,1.8254487]
[1747015404527,0.15637634,104010.0,104000.0,1.8254487]
[1747015404758,0.13714771,104010.0,104000.0,1.8254487]
[1747015405380,0.01922641,104020.0,104010.0,0.57350264]
[1747015405596,0.43770709,104030.0,104020.0,0.3716]
[1747015405804,0.43770709,104030.0,104020.0,0.5840877]
[1747015406044,0.56496139,104030.0,104020.0,0.34]
[1747015406250,0.57950224,104030.0,104020.0,0.5840877]
[1747015407088,0.58050224,104030.0,104020.0,0.5840877]
[1747015407356,0.64809099,104030.0,104000.0,0.07024578]
[1747015407536,0.21151746,104010.0,104000.0,0.29843348]
[1747015407746,0.32943746,104010.0,104000.0,0.85777948]
[1747015408558,0.44735746,104010.0,104000.0,0.85777948]
[1747015409233,0.44735746,104010.0,104000.0,0.86077948]
[1747015409627,0.44735746,104010.0,104000.0,0.86377948]
[1747015410073,0.44735746,104010.0,104000.0,0.81312948]
[1747015412603,0.44735746,104010.0,104000.0,0.83785548]
[1747015414534,0.44735746,104010.0,104000.0,0.80460448]
[1747015415250,0.46189831,104010.0,104000.0,0.5460687]
[1747015415466,0.58875261,104010.0,104000.0,0.3858977]
[1747015415889,1.00395261,104010.0,104000.0,0.0458977]
[1747015416100,0.20192288,104000.0,103990.0,0.0906553]
[1747015416325,0.65054782,104000.0,103990.0,0.34]
[1747015416550,0.64862288,104000.0,103990.0,0.5840877]
[1747015417316,0.64862288,104000.0,103990.0,0.5900877]
[1747015418221,0.61712288,104000.0,103990.0,0.8259417]
[1747015418431,0.42481464,104000.0,103990.0,1.30327076]
[1747015418669,0.4152,104000.0,103990.0,1.42797306]
[1747015418908,0.43442956,104000.0,103990.0,1.08797306]
[1747015419311,0.42481464,104000.0,103990.0,1.48797306]
[1747015419535,0.11792715,104010.0,104000.0,0.20192195]
[1747015419746,0.12754114,104010.0,104000.0,4.22820743]
[1747015419981,0.10831343,104010.0,104000.0,4.22628465]
[1747015420233,0.00961362,104010.0,104000.0,4.62628465]
[1747015420649,0.14675939,104020.0,104010.0,0.20190282]
[1747015420863,0.14675939,104020.0,104010.0,2.95174171]
[1747015421077,0.55234456,104030.0,104020.0,0.23298294]
[1747015421306,0.34862062,104030.0,104020.0,2.73911676]
[1747015421532,0.165981,104030.0,104020.0,2.84521276]
[1747015421773,0.00961205,104030.0,104020.0,2.72703276]
[1747015421971,0.65304,104050.0,104040.0,0.18262188]
[1747015422188,0.68235502,104050.0,104040.0,1.77991222]
[1747015422497,0.68235502,104050.0,104040.0,2.11030118]
[1747015422700,0.43690445,104050.0,104040.0,2.12952335]
[1747015422915,0.6387303,104050.0,104040.0,2.11648987]
[1747015423144,0.6407303,104050.0,104040.0,2.31254187]
[1747015423340,0.6387303,104050.0,104040.0,2.26773328]
[1747015423558,0.6397303,104050.0,104040.0,2.2926445]
[1747015423757,0.6397303,104050.0,104040.0,2.30912361]
[1747015423968,0.6387303,104050.0,104040.0,2.30912361]
[1747015424445,0.6195098,104050.0,104040.0,2.13092448]
[1747015424687,0.6195098,104050.0,104040.0,1.62744908]
[1747015424895,0.6195098,104050.0,104040.0,2.11562448]
[1747015425077,0.6195098,104050.0,104040.0,2.12523598]
[1747015426164,0.6195098,104050.0,104040.0,1.44482711]
[1747015426387,0.68610059,104050.0,104040.0,0.69631411]
[1747015426616,0.60989923,104050.0,104040.0,0.58445711]
[1747015426845,0.60989923,104050.0,104040.0,0.7852307]
[1747015428127,0.60989923,104050.0,104040.0,0.3832307]
[1747015428479,0.61089923,104050.0,104040.0,0.3832307]
[1747015428688,0.61089923,104050.0,104040.0,0.79284238]
[1747015428902,0.61089923,104050.0,104040.0,0.3832307]
[1747015429140,0.61089923,104050.0,104040.0,0.3822307]
[1747015429362,0.61189923,104050.0,104040.0,0.3822307]
[1747015430319,0.61189923,104050.0,104040.0,0.39184229]
[1747015430557,0.41968395,104050.0,104040.0,1.14894028]
[1747015430774,0.00448395,104050.0,104040.0,1.29481693]
[1747015430989,0.20387238,104070.0,104050.0,0.57261274]
[1747015430990,0.01921856,104060.0,104050.0,0.57261274]
[1747015431214,0.02882914,104060.0,104050.0,3.15024742]
[1747015431422,0.02882895,104060.0,104050.0,3.15985753]
[1747015431581,0.04804816,104060.0,104050.0,3.15024742]
[1747015432186,0.23063559,104060.0,104050.0,3.16485641]
[1747015432409,0.23063559,104060.0,104050.0,3.17446652]
[1747015432410,0.02882895,104060.0,104050.0,3.17446652]
[1747015432618,0.4302887,104070.0,104060.0,0.53219633]
[1747015432774,0.4302887,104070.0,104060.0,1.8262807]
[1747015432987,0.4302887,104070.0,104060.0,1.6239957]
[1747015434061,0.4302887,104070.0,104060.0,1.379908]
[1747015434268,0.4302887,104070.0,104060.0,1.4269007]
[1747015435223,0.4312887,104070.0,104060.0,1.4269007]
[1747015436140,0.4312887,104070.0,104060.0,1.59987782]
[1747015436347,0.4312887,104070.0,104060.0,1.60948756]
[1747015436571,0.4311687,104070.0,104060.0,1.70534186]
[1747015436758,0.4311687,104070.0,104060.0,1.4269007]
[1747015437189,0.4311687,104070.0,104060.0,1.43651054]
[1747015438477,0.3132887,104070.0,104060.0,1.64440669]
[1747015438701,0.3132887,104070.0,104060.0,1.65049722]
[1747015438945,0.3132887,104070.0,104060.0,1.64088766]
[1747015439153,0.3132887,104070.0,104060.0,1.67949577]
[1747015439790,0.34202948,104070.0,104060.0,1.69871498]
[1747015439999,0.34202948,104070.0,104060.0,2.09871498]
[1747015440639,0.34202948,104070.0,104060.0,2.44826617]
[1747015440640,0.00314514,104070.0,104060.0,2.44826617]
[1747015440872,0.00314514,104070.0,104060.0,2.04826617]
[1747015441103,0.25693348,104090.0,104080.0,0.02882286]
[1747015441321,0.02121293,104090.0,104080.0,1.21907582]
[1747015441558,0.02121284,104090.0,104080.0,4.19268744]
[1747015441794,0.01160624,104090.0,104080.0,4.28854174]
[1747015442444,0.002,104090.0,104080.0,4.28854174]
[1747015443084,0.003,104090.0,104080.0,4.28854174]
[1747015444321,0.005,104090.0,104080.0,4.28854174]
[1747015445096,0.01260624,104090.0,104080.0,4.28854174]
[1747015445310,0.004,104090.0,104080.0,4.28854174]
[1747015445567,0.01360633,104090.0,104080.0,4.28854174]
[1747015447248,0.01360624,104090.0,104080.0,4.28854174]
[1747015448169,0.01360624,104090.0,104080.0,4.53262944]
[1747015448370,0.01360624,104090.0,104080.0,4.56144944]
[1747015448575,0.02321275,104090.0,104080.0,4.56144944]
[1747015448772,0.02321275,104090.0,104080.0,4.31736174]
[1747015448985,0.02321266,104090.0,104080.0,4.31736174]
[1747015449208,0.01360624,104090.0,104080.0,4.31736174]
[1747015449368,0.02321257,104090.0,104080.0,4.31736174]
[1747015449574,0.004,104090.0,104080.0,4.56144944]
[1747015449774,0.01360624,104090.0,104080.0,4.31736174]
[1747015450389,0.01360624,104090.0,104080.0,4.07327404]
[1747015450622,0.02321257,104090.0,104080.0,4.31736174]
[1747015450839,0.01360624,104090.0,104080.0,4.31736174]
[1747015451036,0.02321266,104090.0,104080.0,4.31736174]
[1747015452099,0.01360624,104090.0,104080.0,4.31736174]
[1747015453117,0.32160211,104110.0,104100.0,0.19212248]
[1747015453340,0.34075943,104110.0,104100.0,2.89968239]
[1747015453562,0.35050368,104110.0,104100.0,2.48321786]
[1747015453780,0.14879405,104110.0,104100.0,2.85203486]
[1747015453995,0.14879405,104110.0,104100.0,2.86164036]
[1747015454673,0.13058397,104110.0,104100.0,2.87674036]
[1747015454896,0.1497933,104110.0,104100.0,2.89224036]
[1747015455116,0.15939834,104110.0,104100.0,2.89224036]
[1747015455560,0.16900356,104110.0,104100.0,2.89224036]
[1747015455691,0.15939834,104110.0,104100.0,2.89224036]
[1747015456358,0.00960411,104120.0,104110.0,0.19210385]
[1747015456615,0.32940301,104130.0,104120.0,0.53208595]
[1747015456831,0.46644893,104130.0,104120.0,3.85510458]
[1747015457075,0.47605203,104130.0,104120.0,3.79203097]
[1747015457258,0.47605203,104130.0,104120.0,3.46810097]
[1747015457428,0.66811963,104130.0,104120.0,3.44685832]
[1747015457632,0.66811963,104130.0,104120.0,3.43725458]
[1747015457853,0.66811963,104130.0,104120.0,3.39637842]
[1747015458199,0.67111963,104130.0,104120.0,3.40598216]
[1747015458766,0.67511963,104130.0,104120.0,3.40598216]
[1747015458976,0.68661408,104130.0,104120.0,1.7190727]
[1747015459188,0.22820573,104130.0,104120.0,1.25763544]
[1747015459363,0.22820537,104130.0,104120.0,1.36998974]
[1747015459553,0.23780847,104130.0,104120.0,1.36998974]
[1747015459825,0.209,104130.0,104120.0,1.38648974]
[1747015460082,0.00960172,104140.0,104130.0,0.52362604]
[1747015460305,0.24814053,104150.0,104140.0,0.1824466]
[1747015460506,0.26734295,104150.0,104140.0,2.99236219]
[1747015460970,0.27694439,104150.0,104140.0,2.21404338]
[1747015461151,0.27694439,104150.0,104140.0,2.19876338]
[1747015461348,0.27694439,104150.0,104140.0,1.89321838]
[1747015461559,0.46897511,104150.0,104140.0,1.8836163]
[1747015461768,0.45377306,104150.0,104140.0,1.50648857]
[1747015461972,0.26474234,104150.0,104140.0,1.41625833]
[1747015462179,0.26474234,104150.0,104140.0,1.43546222]
[1747015462327,0.45677306,104150.0,104140.0,1.42586041]
[1747015465283,0.26474234,104150.0,104140.0,1.42586041]
[1747015465483,0.45677306,104150.0,104140.0,1.42586041]
[1747015465633,0.45677306,104150.0,104140.0,1.41625833]
[1747015465837,0.45677306,104150.0,104140.0,1.42586041]
[1747015466085,0.45677306,104150.0,104140.0,1.4354624]
[1747015466650,0.45677306,104150.0,104140.0,1.42586041]
[1747015466868,0.45677306,104150.0,104140.0,1.43546231]
[1747015467066,0.26474234,104150.0,104140.0,1.44506412]
[1747015467477,0.27434387,104150.0,104140.0,1.44506412]
[1747015467682,0.15574387,104150.0,104140.0,1.44506412]
[1747015467881,0.12693955,104150.0,104140.0,1.77085636]
[1747015468080,0.13654044,104150.0,104140.0,1.88241066]
[1747015468309,0.14614142,104150.0,104140.0,1.88241066]
[1747015468547,0.15574258,104150.0,104140.0,1.88241066]
[1747015468750,0.14874258,104150.0,104140.0,1.89901066]
[1747015468949,0.14974258,104150.0,104140.0,1.89901066]
[1747015469276,0.00313955,104150.0,104140.0,2.14309836]
[1747015470158,0.00413955,104150.0,104140.0,1.89901066]
[1747015470395,0.00413955,104150.0,104140.0,2.14309836]
[1747015471212,0.00213955,104150.0,104140.0,2.14309836]
[1747015471451,0.00213955,104150.0,104140.0,2.14409836]
[1747015471663,0.00213955,104150.0,104140.0,2.14509836]
[1747015471886,0.00213955,104150.0,104140.0,2.18436032]
[1747015472974,0.00213955,104150.0,104140.0,2.44027262]
[1747015473224,0.22297348,104150.0,104140.0,1.60303026]
[1747015473449,0.59188784,104150.0,104140.0,0.14126196]
[1747015473657,1.00708784,104150.0,104140.0,0.04126196]
[1747015473865,1.00708784,104150.0,104140.0,0.38126196]
[1747015474081,1.00708784,104150.0,104140.0,0.62434966]
[1747015474289,1.00808784,104150.0,104140.0,0.62434966]
[1747015474520,1.00808784,104150.0,104140.0,0.62334966]
[1747015474734,1.00908784,104150.0,104140.0,0.62334966]
[1747015474942,1.00908784,104150.0,104140.0,0.37926196]
[1747015475146,1.01108784,104150.0,104140.0,0.37926196]
[1747015476953,0.43094062,104150.0,104140.0,2.22048566]
[1747015477158,0.4597442,104150.0,104140.0,2.40293133]
[1747015477385,0.4597442,104150.0,104140.0,2.22048566]
[1747015477386,0.63257324,104150.0,104140.0,2.22048566]
[1747015477589,0.63257324,104150.0,104140.0,1.25825035]
[1747015477801,0.63257324,104150.0,104140.0,1.09500866]
[1747015478018,0.6229718,104150.0,104140.0,1.25825026]
[1747015478251,0.2077718,104150.0,104140.0,1.25825035]
[1747015478459,0.2077718,104150.0,104140.0,1.26785253]
[1747015478636,0.2077718,104150.0,104140.0,1.27745461]
[1747015479087,0.2057718,104150.0,104140.0,1.27745461]
[1747015479299,0.2067718,104150.0,104140.0,1.2870566]
[1747015479517,0.2047718,104150.0,104140.0,1.09500866]
[1747015479726,0.2057718,104150.0,104140.0,1.26785262]
[1747015479953,0.2057718,104150.0,104140.0,1.23819274]
[1747015480164,0.2057718,104150.0,104140.0,1.21898848]
[1747015480370,0.2057718,104150.0,104140.0,1.23819302]
[1747015480582,0.2057718,104150.0,104140.0,1.24779501]
[1747015483527,0.03294322,104150.0,104140.0,1.25739691]
[1747015483735,0.04254475,104150.0,104140.0,1.25739691]
[1747015483956,0.04254475,104150.0,104140.0,1.25739627]
[1747015484540,0.23457547,104150.0,104140.0,1.24779446]
[1747015484757,0.21537324,104150.0,104140.0,1.21898839]
[1747015484978,0.2057718,104150.0,104140.0,1.21898839]
[1747015485191,0.2057718,104150.0,104140.0,1.22859057]
[1747015485402,0.2057718,104150.0,104140.0,1.23819265]
[1747015485622,0.2057718,104150.0,104140.0,0.90779464]
[1747015485842,0.21537305,104150.0,104140.0,0.91739654]
[1747015486667,0.02334178,104150.0,104140.0,0.91739654]
[1747015486881,0.00413955,104150.0,104140.0,0.93289599]
[1747015487085,0.00413955,104150.0,104140.0,0.94839599]
[1747015487292,0.00413955,104150.0,104140.0,1.04425029]
[1747015487505,0.01374025,104150.0,104140.0,1.42325527]
[1747015487715,0.00413955,104150.0,104140.0,1.42325527]
[1747015488061,0.01374044,104150.0,104140.0,1.42325527]
[1747015488710,0.02334151,104150.0,104140.0,1.42325527]
[1747015488935,0.01374044,104150.0,104140.0,1.42325527]
[1747015489335,0.00413955,104150.0,104140.0,1.42325527]
[1747015489598,0.01374034,104150.0,104140.0,1.42325527]
[1747015489967,0.02334141,104150.0,104140.0,1.42325527]
[1747015490702,0.02334132,104150.0,104140.0,1.42325527]
[1747015492386,0.23457482,104150.0,104140.0,1.39444957]
[1747015492612,0.24677305,104150.0,104140.0,0.37900498]
[1747015492826,0.21537305,104150.0,104140.0,0.75959013]
[1747015493460,0.21537305,104150.0,104140.0,0.76919249]
[1747015493878,0.21537305,104150.0,104140.0,0.92283182]
[1747015494099,0.21537305,104150.0,104140.0,0.9420359]
[1747015494312,0.21537305,104150.0,104140.0,0.94203608]
[1747015494520,0.02334114,104150.0,104140.0,0.95163789]
[1747015494700,0.02334114,104150.0,104140.0,0.98353789]
[1747015494974,0.0329423,104150.0,104140.0,0.98353789]
[1747015495192,0.04254337,104150.0,104140.0,0.98353789]
[1747015495610,0.05214472,104150.0,104140.0,0.98353789]
[1747015495811,0.04254328,104150.0,104140.0,0.71940272]
[1747015496032,0.05214463,104150.0,104140.0,0.60453291]
[1747015496435,0.05214453,104150.0,104140.0,0.60453291]
[1747015496864,0.04254328,104150.0,104140.0,0.60453291]
[1747015497043,0.04254319,104150.0,104140.0,0.60453291]
[1747015497653,0.05214444,104150.0,104140.0,0.36044521]
[1747015497856,0.05214444,104150.0,104140.0,0.94453291]
[1747015498012,0.03294221,104150.0,104140.0,0.75078519]
[1747015498359,0.03294221,104150.0,104140.0,4.661909]
[1747015498558,0.03294221,104150.0,104140.0,3.33984]
[1747015498764,0.04254346,104150.0,104140.0,3.26872]
[1747015498977,0.03294221,104150.0,104140.0,3.247141]
[1747015499848,0.04254346,104150.0,104140.0,3.247141]
[1747015500053,0.0521449,104150.0,104140.0,1.44658409]
[1747015500293,0.21537296,104150.0,104140.0,1.037347]
[1747015500509,0.24747296,104150.0,104140.0,0.3610787]
[1747015500730,0.0288056,104140.0,104130.0,0.22592957]
[1747015500943,0.0288056,104140.0,104130.0,1.83610227]
[1747015501191,0.01920352,104140.0,104130.0,1.83610227]
[1747015501423,0.01920343,104140.0,104130.0,1.83610227]
[1747015501639,0.00960162,104140.0,104130.0,1.86750227]
[1747015501845,0.00213955,104150.0,104140.0,0.18244558]
[1747015502050,0.26432073,104160.0,104150.0,0.18242806]
[1747015502256,0.2840051,104160.0,104150.0,4.88872376]
[1747015502479,0.2840051,104160.0,104150.0,4.13877276]
[1747015502694,0.27440449,104160.0,104150.0,4.13877276]
[1747015502917,0.2840051,104160.0,104150.0,2.86947276]
[1747015503128,0.26480406,104160.0,104150.0,2.51866294]
[1747015503339,0.27440449,104160.0,104150.0,2.52926383]
[1747015504010,0.12784376,104160.0,104150.0,2.52926383]
[1747015504228,0.01008394,104160.0,104150.0,2.78915153]
[1747015504447,0.019684,104160.0,104150.0,2.80505153]
[1747015504664,0.00048398,104160.0,104150.0,2.80605153]
[1747015504883,0.01008394,104160.0,104150.0,2.80605153]
[1747015505145,0.01968382,104160.0,104150.0,2.80605153]
[1747015505354,0.02928406,104160.0,104150.0,2.77435153]
[1747015505583,0.01008376,104160.0,104150.0,2.77435153]
[1747015505804,0.02928378,104160.0,104150.0,2.77435153]
[1747015505957,0.02928369,104160.0,104150.0,2.77435153]
[1747015506377,0.02928369,104160.0,104150.0,2.53026383]
[1747015506565,0.01968363,104160.0,104150.0,2.53026383]
[1747015506779,0.02928369,104160.0,104150.0,2.53026383]
[1747015507185,0.01968363,104160.0,104150.0,2.53026383]
[1747015507382,0.02928369,104160.0,104150.0,2.53026383]
[1747015507595,0.01008376,104160.0,104150.0,2.53026383]
[1747015507818,0.0388843,104160.0,104150.0,2.53026383]
[1747015508029,0.02928387,104160.0,104150.0,2.53026383]
[1747015508445,0.02928387,104160.0,104150.0,2.77435153]
[1747015508647,0.01008376,104160.0,104150.0,2.77435153]
[1747015508803,0.01968382,104160.0,104150.0,2.88530583]
[1747015509632,0.0388844,104160.0,104150.0,2.88530583]
[1747015509852,0.02928397,104160.0,104150.0,2.87020583]
[1747015510089,0.0388843,104160.0,104150.0,2.87020583]
[1747015510332,0.22129717,104160.0,104150.0,1.98153271]
[1747015510553,0.23679717,104160.0,104150.0,1.99113396]
[1747015510785,0.23679717,104160.0,104150.0,2.00073512]
[1747015511022,0.22129717,104160.0,104150.0,2.00073512]
[1747015512263,0.20209669,104160.0,104150.0,1.98153271]
[1747015512472,0.20209669,104160.0,104150.0,1.66258071]
[1747015512672,0.20209669,104160.0,104150.0,1.68178331]
[1747015512888,0.20209669,104160.0,104150.0,1.69138447]
[1747015513100,0.1944212,104160.0,104150.0,1.4993547]
[1747015513306,0.1944212,104160.0,104150.0,0.9413767]
[1747015513307,0.2267212,104160.0,104150.0,0.9413767]
[1747015513543,0.22479626,104160.0,104150.0,0.98097672]
[1747015513963,0.34251626,104160.0,104150.0,0.22949902]
[1747015514200,0.75771626,104160.0,104150.0,0.75824372]
[1747015515031,0.75771626,104160.0,104150.0,0.7186437]
[1747015515242,0.75771626,104160.0,104150.0,0.5860877]
[1747015515445,0.75771626,104160.0,104150.0,0.8044937]
[1747015515660,0.75771626,104160.0,104150.0,0.5860877]
[1747015516470,0.75771626,104160.0,104150.0,0.342]
[1747015516675,0.75771626,104160.0,104150.0,0.566398]
[1747015517035,0.75771626,104160.0,104150.0,0.342]
[1747015517380,0.98583141,104160.0,104150.0,0.002]
[1747015519288,1.23991911,104160.0,104150.0,0.002]
[1747015519513,0.20167051,104130.0,104120.0,0.2460877]
[1747015519722,0.48093864,104130.0,104120.0,0.3260877]
[1747015519934,0.4790137,104130.0,104120.0,0.2460877]
[1747015520145,0.4790137,104130.0,104120.0,0.28457216]
[1747015520821,0.4810137,104130.0,104120.0,0.29657216]
[1747015521373,0.4810137,104130.0,104120.0,0.55409216]
[1747015521615,0.4810137,104130.0,104120.0,0.29657216]
[1747015521828,0.4810137,104130.0,104120.0,0.57169216]
[1747015522041,0.24708264,104130.0,104120.0,1.36926049]
[1747015522245,0.27589157,104130.0,104120.0,1.37886423]
[1747015522446,0.4487538,104130.0,104120.0,0.94269216]
[1747015522648,0.4487538,104130.0,104120.0,0.91169216]
[1747015522981,0.4811538,104130.0,104120.0,0.39248446]
[1747015523254,0.4811538,104130.0,104120.0,0.63657216]
[1747015523912,0.4811538,104130.0,104120.0,1.66406416]
[1747015524111,0.4487538,104130.0,104120.0,1.52866516]
[1747015525166,0.4487538,104130.0,104120.0,1.4901807]
[1747015526972,0.4487538,104130.0,104120.0,1.2625767]
[1747015527744,0.4487538,104130.0,104120.0,1.2134927]
[1747015528014,0.4791538,104130.0,104120.0,0.5980877]
[1747015529201,0.4791538,104130.0,104120.0,0.354]
[1747015529988,0.4791538,104130.0,104120.0,0.39203599]
[1747015530216,0.4781538,104130.0,104120.0,0.38603599]
[1747015530442,0.4771538,104130.0,104120.0,0.38103599]
[1747015530573,0.4771538,104130.0,104120.0,0.38203599]
[1747015530784,0.4771538,104130.0,104120.0,0.62612369]
[1747015531212,0.4771538,104130.0,104120.0,0.38203599]
[1747015532976,1.00074895,104130.0,104120.0,0.38203599]
[1747015533480,1.00074895,104130.0,104120.0,0.344]
[1747015533729,1.00074895,104130.0,104120.0,0.004]
[1747015534903,1.00074895,104130.0,104120.0,0.04384147]
[1747015535409,1.00074895,104130.0,104120.0,0.04284147]
[1747015535662,1.00174895,104130.0,104120.0,0.002]
[1747015536128,1.00274895,104130.0,104120.0,0.002]
[1747015537383,0.2422143,104110.0,104100.0,0.002]
[1747015537592,0.58804945,104110.0,104100.0,0.002]
[1747015537802,0.58804945,104110.0,104100.0,0.62513487]
[1747015538017,0.58804945,104110.0,104100.0,0.5860877]
[1747015538634,0.58804945,104110.0,104100.0,0.58922725]
[1747015539048,0.58804945,104110.0,104100.0,0.59222725]
[1747015539487,0.58804945,104110.0,104100.0,0.34813955]
[1747015539902,1.00280945,104110.0,104100.0,0.38654309]
[1747015541154,1.41400945,104110.0,104100.0,0.38654309]
[1747015541590,1.41400945,104110.0,104100.0,0.38354309]
[1747015541806,1.41400945,104110.0,104100.0,0.38054309]
[1747015542045,1.41400945,104110.0,104100.0,0.38154309]
[1747015542266,1.41400945,104110.0,104100.0,0.38254309]
[1747015542923,1.41400945,104110.0,104100.0,0.62663079]
[1747015544909,1.41400945,104110.0,104100.0,0.58822725]
[1747015545111,1.26538945,104110.0,104100.0,0.58822725]
[1747015545323,0.5481298,104110.0,104100.0,1.42808331]
[1747015545533,0.74983943,104110.0,104100.0,1.45690109]
[1747015545794,0.74983943,104110.0,104100.0,1.43768945]
[1747015545994,0.74983943,104110.0,104100.0,1.44729532]
[1747015546222,0.00960448,104110.0,104100.0,1.46650567]
[1747015546441,0.01920915,104110.0,104100.0,1.56235997]
[1747015546657,0.03841895,104110.0,104100.0,1.56235997]
[1747015547514,0.03841895,104110.0,104100.0,1.37036482]
[1747015547727,0.03841895,104110.0,104100.0,1.22035997]
[1747015547935,0.03841895,104110.0,104100.0,1.21935997]
[1747015548171,0.03841895,104110.0,104100.0,1.21835997]
[1747015548403,0.23052345,104110.0,104100.0,1.20114962]
[1747015548642,0.23052419,104110.0,104100.0,1.21375548]
[1747015548885,0.21131476,104110.0,104100.0,0.24922725]
[1747015549087,0.21131476,104110.0,104100.0,0.79543125]
[1747015549525,0.21131476,104110.0,104100.0,1.13543125]
[1747015549740,0.21131476,104110.0,104100.0,1.13343125]
[1747015550178,0.01921026,104110.0,104100.0,1.55991731]
[1747015550382,0.1368898,104110.0,104100.0,1.58873491]
[1747015550558,0.33859952,104110.0,104100.0,1.58873491]
[1747015550808,0.33859952,104110.0,104100.0,1.57912932]
[1747015551003,0.32899476,104110.0,104100.0,1.5791295]
[1747015551205,0.32899476,104110.0,104100.0,1.58873546]
[1747015551475,0.31938972,104110.0,104100.0,1.58873546]
[1747015551911,0.3097845,104110.0,104100.0,1.61901843]
[1747015552135,0.3097845,104110.0,104100.0,1.62962439]
[1747015552891,0.3097845,104110.0,104100.0,1.63923026]
[1747015554773,0.30867024,104110.0,104100.0,1.63923026]
[1747015554985,0.30867024,104110.0,104100.0,1.59934133]
[1747015555190,0.30867024,104110.0,104100.0,1.6089471]
[1747015558031,0.72102193,104120.0,104110.0,0.17878882]
[1747015558238,0.54812813,104120.0,104110.0,1.22643007]
[1747015558485,0.52892,104120.0,104110.0,1.90637207]
[1747015558684,0.03080938,104130.0,104120.0,0.5543809]
[1747015558915,0.04041276,104130.0,104120.0,4.1191293]
[1747015559126,0.23248036,104130.0,104120.0,3.86543786]
[1747015559321,0.21327426,104130.0,104120.0,2.39810984]
[1747015559599,0.21327426,104130.0,104120.0,2.41731797]
[1747015559801,0.02120666,104130.0,104120.0,2.66577325]
[1747015560028,0.02120666,104130.0,104120.0,2.42168555]
[1747015560626,0.02120666,104130.0,104120.0,2.4120819]
[1747015561178,0.01160301,104130.0,104120.0,2.42168555]
[1747015561400,0.03080893,104130.0,104120.0,2.66677325]
[1747015561623,0.03080893,104130.0,104120.0,2.66777325]
[1747015561854,0.03080893,104130.0,104120.0,2.6581696]
[1747015562060,0.22287653,104130.0,104120.0,2.6571696]
[1747015562270,0.03080893,104130.0,104120.0,2.66577279]
[1747015562478,0.02120574,104130.0,104120.0,2.66977279]
[1747015562900,0.002,104130.0,104120.0,2.76562709]
[1747015563109,0.67728395,104150.0,104140.0,0.52874359]
[1747015563315,0.01160079,104150.0,104140.0,3.511542]
[1747015563531,0.04040419,104150.0,104140.0,3.257078]
[1747015563783,0.05000572,104150.0,104140.0,3.24747619]
[1747015564225,0.23243565,104150.0,104140.0,2.6630703]
[1747015564435,0.23243565,104150.0,104140.0,1.71433156]
[1747015564658,0.23243565,104150.0,104140.0,1.67586656]
[1747015564873,0.2152336,104150.0,104140.0,0.842158]
[1747015565090,0.23813225,104150.0,104140.0,0.5840877]
[1747015566658,0.20563225,104150.0,104140.0,1.9839857]
[1747015567057,0.20563225,104150.0,104140.0,1.5113677]
[1747015567342,0.32323225,104150.0,104140.0,1.5113677]
[1747015567546,0.44083225,104150.0,104140.0,1.5113677]
[1747015568273,0.44083225,104150.0,104140.0,1.3214257]
[1747015568457,0.47333225,104150.0,104140.0,0.6848337]
[1747015568701,0.47333225,104150.0,104140.0,0.5840877]
[1747015573126,0.47333225,104150.0,104140.0,0.34]
[1747015573127,0.5837274,104150.0,104140.0,0.34]
[1747015574972,0.2112737,104130.0,104120.0,0.28267047]
[1747015575167,0.3288337,104130.0,104120.0,0.28267047]
[1747015575393,0.4464337,104130.0,104120.0,0.77620647]
[1747015576116,0.4464337,104130.0,104120.0,0.62467047]
[1747015577304,0.4464337,104130.0,104120.0,0.62667047]
[1747015577518,0.4787337,104130.0,104120.0,0.38258277]
[1747015577734,0.58912885,104130.0,104120.0,0.38258277]
[1747015577947,0.47156885,104130.0,104120.0,0.62267047]
[1747015578157,0.58912885,104130.0,104120.0,0.62367047]
[1747015578367,0.58912885,104130.0,104120.0,0.62467047]
[1747015578785,0.58912885,104130.0,104120.0,0.62367047]
[1747015578963,0.59012885,104130.0,104120.0,0.62267047]
[1747015580314,0.59012885,104130.0,104120.0,0.5840877]
[1747015580559,0.59112885,104130.0,104120.0,0.5840877]
[1747015582105,1.00632885,104130.0,104120.0,0.34]
[1747015582617,0.23489016,104120.0,104110.0,0.24422725]
[1747015582775,0.23489016,104120.0,104110.0,0.78434725]
[1747015582986,0.23489016,104120.0,104110.0,0.44434725]
[1747015583312,0.20169016,104120.0,104110.0,0.78434725]
[1747015583515,0.2036151,104120.0,104110.0,0.78434725]
[1747015583943,0.2036151,104120.0,104110.0,0.78534725]
[1747015584324,0.2036151,104120.0,104110.0,0.54225955]
[1747015584471,0.2036151,104120.0,104110.0,0.78634725]
[1747015586494,0.2036151,104120.0,104110.0,0.78534725]
[1747015586704,0.1911151,104120.0,104110.0,0.78534725]
[1747015587001,0.20171921,104120.0,104110.0,0.82360724]
[1747015587211,0.43683921,104120.0,104110.0,0.82360724]
[1747015587429,0.43591427,104120.0,104110.0,0.82360724]
[1747015590181,0.43591427,104120.0,104110.0,0.78434725]
[1747015591379,0.43591427,104120.0,104110.0,0.79944725]
[1747015592016,0.31835427,104120.0,104110.0,0.78434725]
[1747015592167,0.43591427,104120.0,104110.0,0.81624725]
[1747015592627,0.43591427,104120.0,104110.0,0.57896811]
[1747015592896,0.43591427,104120.0,104110.0,2.59770111]
[1747015593146,0.32795829,104120.0,104110.0,2.77059488]
[1747015593377,0.44551829,104120.0,104110.0,2.77059488]
[1747015593825,0.63814506,104140.0,104110.0,2.77059488]
[1747015593826,0.11756,104140.0,104120.0,0.17287642]
[1747015594057,0.14636607,104140.0,104130.0,1.99801531]
[1747015594745,0.16557088,104140.0,104130.0,2.33801531]
[1747015594985,0.15596843,104140.0,104130.0,2.32841258]
[1747015595222,0.34801823,104140.0,104130.0,2.32841258]
[1747015595453,0.15596907,104140.0,104130.0,2.32841258]
[1747015595687,0.15596907,104140.0,104130.0,2.33801531]